bitfinex/quotes_BTCUSD_20211001
["timestamp","ask_amount","ask_price","bid_price","bid_amount"]
[1633070940976,0.00102714,43982.0,43981.0,0.28935091]
[1633070941375,0.00102714,43982.0,43981.0,0.38935091]
[1633070941981,0.00102714,43982.0,43981.0,0.12851844]
[1633070942379,0.00102714,43982.0,43981.0,0.34885243]
[1633070942781,0.00102714,43982.0,43981.0,0.38385243]
[1633070943037,0.00102714,43982.0,43981.0,0.28385243]
[1633070943778,0.00102714,43982.0,43981.0,0.06351844]
[1633070944177,0.00102714,43982.0,43981.0,0.02851844]
[1633070944583,0.5516,43985.0,43984.0,0.00181198]
[1633070944777,0.5516,43985.0,43984.0,0.02461198]
[1633070944979,0.5516,43985.0,43984.0,0.26599757]
[1633070946380,0.5516,43985.0,43984.0,0.26725838]
[1633070946381,0.5016,43985.0,43984.0,0.26725838]
[1633070946683,0.5016,43985.0,43984.0,0.50666838]
[1633070946882,0.5016,43985.0,43984.0,0.54266838]
[1633070947278,0.5016,43985.0,43984.0,0.63247665]
[1633070948279,0.5016,43985.0,43984.0,0.59647665]
[1633070948880,0.5016,43985.0,43984.0,0.63547665]
[1633070950278,0.5016,43985.0,43984.0,0.59647665]
[1633070950879,0.5016,43985.0,43984.0,0.63547665]
[1633070952082,0.5016,43985.0,43984.0,0.59647665]
[1633070952881,0.5016,43985.0,43984.0,0.63547665]
[1633070953081,0.46460192,43985.0,43984.0,0.75962569]
[1633070954082,0.46460192,43985.0,43984.0,0.72062569]
[1633070954883,0.46460192,43985.0,43984.0,0.75962569]
[1633070955080,0.46460192,43985.0,43984.0,0.52920277]
[1633070955680,0.26714546,43985.0,43984.0,0.52920277]
[1633070956283,0.26714546,43985.0,43984.0,0.49020277]
[1633070956884,0.26714546,43985.0,43984.0,0.53020277]
[1633070958084,0.26714546,43985.0,43984.0,0.49020277]
[1633070958890,0.26714546,43985.0,43984.0,0.53020277]
[1633070959288,0.0012,43988.0,43986.0,0.75321988]
[1633070959487,0.0012,43988.0,43986.0,0.13572467]
[1633070960891,0.0012,43988.0,43986.0,0.17572467]
[1633070962146,0.0012,43988.0,43986.0,0.13572467]
[1633070962948,0.0012,43988.0,43986.0,0.17472467]
[1633070964149,0.0012,43988.0,43986.0,0.13572467]
[1633070964354,0.0416,43989.0,43986.0,1.07207135]
[1633070964553,0.0008,43993.0,43988.0,0.8182327]
[1633070964757,0.0012,43994.0,43992.0,1.07611581]
[1633070964950,0.0012,43994.0,43993.0,3.32766888]
[1633070965150,0.0012,43994.0,43993.0,3.28986788]
[1633070965355,0.0012,43994.0,43993.0,0.698849]
[1633070965551,0.02349243,43994.0,43993.0,0.6983189]
[1633070966349,0.02356891,43994.0,43993.0,0.71559481]
[1633070966749,0.01777069,43995.0,43994.0,0.6]
[1633070966950,0.01777069,43995.0,43994.0,1.2922]
[1633070967150,0.01277069,43995.0,43994.0,1.29926685]
[1633070967548,0.01277069,43995.0,43994.0,1.29979695]
[1633070967768,0.0362,43999.0,43994.0,1.29979695]
[1633070967958,6.51847573,44000.0,43999.0,0.00124031]
[1633070968156,6.51847573,44000.0,43999.0,1.33214467]
[1633070968350,6.51847573,44000.0,43999.0,1.42945875]
[1633070968553,6.51847573,44000.0,43999.0,1.1528922]
[1633070968751,6.51847573,44000.0,43999.0,1.15381192]
[1633070968951,6.51847573,44000.0,43999.0,1.19167114]
[1633070969151,6.51847573,44000.0,43999.0,1.09723456]
[1633070969951,6.51847573,44000.0,43999.0,1.09599425]
[1633070970152,6.51847573,44000.0,43999.0,1.05999425]
[1633070970750,6.5183821,44000.0,43999.0,1.05999425]
[1633070970954,6.5183821,44000.0,43999.0,1.09999425]
[1633070972155,6.5183821,44000.0,43999.0,1.05999425]
[1633070972958,6.5183821,44000.0,43999.0,1.09999425]
[1633070973954,6.55893126,44000.0,43999.0,1.09999425]
[1633070974154,6.5183821,44000.0,43999.0,1.09999425]
[1633070974355,6.5183821,44000.0,43999.0,1.05999425]
[1633070974556,6.36046456,44000.0,43999.0,1.05999425]
[1633070974956,6.36046456,44000.0,43999.0,1.09899425]
[1633070975555,6.36046456,44000.0,43999.0,1.59899425]
[1633070975760,6.1630711,44000.0,43999.0,1.59899425]
[1633070975956,6.1630711,44000.0,43999.0,2.80799425]
[1633070976157,6.1630711,44000.0,43999.0,2.76899425]
[1633070976356,6.1580711,44000.0,43999.0,2.76899425]
[1633070976560,6.1580711,44000.0,43999.0,1.55999425]
[1633070976956,6.15814597,44000.0,43999.0,1.59999425]
[1633070978157,6.15814597,44000.0,43999.0,1.55999425]
[1633070978957,6.15814597,44000.0,43999.0,1.59899425]
[1633070979158,6.15814597,44000.0,43999.0,2.80799425]
[1633070979759,6.15814597,44000.0,43999.0,1.09899425]
[1633070980360,6.15814597,44000.0,43999.0,1.05999425]
[1633070980561,6.15314597,44000.0,43999.0,1.05999425]
[1633070980965,6.15314597,44000.0,43999.0,1.09999425]
[1633070981566,6.14992609,44000.0,43999.0,1.09999425]
[1633070982165,6.14992609,44000.0,43999.0,1.05999425]
[1633070982969,6.14992609,44000.0,43999.0,1.09999425]
[1633070984166,6.19492609,44000.0,43999.0,1.09999425]
[1633070984365,6.19492609,44000.0,43999.0,1.05999425]
[1633070984969,6.19492609,44000.0,43999.0,1.09999425]
[1633070985369,6.41772609,44000.0,43999.0,1.073086]
[1633070985572,6.41772609,44000.0,43999.0,0.973086]
[1633070985573,6.66772609,44000.0,43999.0,0.973086]
[1633070985975,6.19452609,44000.0,43999.0,0.973086]
[1633070986174,6.19452609,44000.0,43999.0,1.473086]
[1633070986370,6.19452609,44000.0,43999.0,1.433086]
[1633070986771,6.19452609,44000.0,43999.0,2.64338502]
[1633070986971,6.19452609,44000.0,43999.0,1.47338502]
[1633070987169,6.19452609,44000.0,43999.0,1.57338502]
[1633070987972,6.18952609,44000.0,43999.0,1.57338502]
[1633070988371,6.18952609,44000.0,43999.0,1.53438502]
[1633070988970,6.18952609,44000.0,43999.0,1.57338502]
[1633070989570,6.18952609,44000.0,43999.0,1.63881446]
[1633070990173,6.18952609,44000.0,43999.0,1.59981446]
[1633070990973,6.18952609,44000.0,43999.0,1.63881446]
[1633070991772,5.92133251,44000.0,43999.0,1.63881446]
[1633070994377,5.92133251,44000.0,43999.0,1.59981446]
[1633070994975,5.92133251,44000.0,43999.0,1.85376689]
[1633070995777,5.7239356,44000.0,43999.0,1.85376689]
[1633070995985,5.9471356,44000.0,43999.0,0.7312]
[1633070996182,5.9471356,44000.0,43999.0,0.6312]
[1633070996183,5.99840671,44000.0,43999.0,0.6312]
[1633070996383,6.02520671,44000.0,43999.0,0.6312]
[1633070996587,5.7739356,44000.0,43999.0,0.80414321]
[1633070996781,5.7739356,44000.0,43999.0,0.5922]
[1633070996982,5.7739356,44000.0,43999.0,0.83927612]
[1633070997784,5.7739356,44000.0,43999.0,0.93927612]
[1633070997984,5.7739356,44000.0,43999.0,0.87690937]
[1633070998381,5.7239356,44000.0,43999.0,0.84190937]
[1633070998981,5.7239356,44000.0,43999.0,0.87790937]
[1633071000583,5.7239356,44000.0,43999.0,0.84190937]
[1633071000983,5.7239356,44000.0,43999.0,0.87790937]
[1633071002385,5.7239356,44000.0,43999.0,0.84190937]
[1633071003044,5.7239356,44000.0,43999.0,0.87790937]
[1633071004389,5.7239356,44000.0,43999.0,0.84190937]
[1633071004590,5.7189356,44000.0,43999.0,0.84190937]
[1633071004788,5.56101361,44000.0,43999.0,0.84190937]
[1633071005187,5.61101361,44000.0,43999.0,0.87690937]
[1633071006488,5.61101361,44000.0,43999.0,0.84190937]
[1633071006687,5.61101361,44000.0,43999.0,0.84196937]
[1633071007086,5.61101361,44000.0,43999.0,0.87796937]
[1633071007488,5.61101361,44000.0,43999.0,0.77796937]
[1633071008488,5.61101361,44000.0,43999.0,0.74196937]
[1633071009093,5.61101361,44000.0,43999.0,0.77696937]
[1633071009692,5.61101361,44000.0,43999.0,1.10774699]
[1633071010291,5.61101361,44000.0,43999.0,0.87696937]
[1633071010494,5.61101361,44000.0,43999.0,0.84196937]
[1633071011095,5.61101361,44000.0,43999.0,0.87696937]
[1633071012153,5.61013682,44000.0,43999.0,0.87696937]
[1633071012353,5.61013682,44000.0,43999.0,1.12093663]
[1633071012552,5.61013682,44000.0,43999.0,0.84196937]
[1633071013152,5.61013682,44000.0,43999.0,0.88096937]
[1633071014151,5.61013682,44000.0,43999.0,1.11611247]
[1633071014354,5.56101361,44000.0,43999.0,1.07711247]
[1633071014551,5.56101361,44000.0,43999.0,0.84196937]
[1633071014755,5.56101361,44000.0,43999.0,0.96669405]
[1633071015153,5.56101361,44000.0,43999.0,1.00569405]
[1633071015553,5.56101361,44000.0,43999.0,2.02215278]
[1633071015960,5.36361464,44000.0,43999.0,2.02215278]
[1633071016352,5.36361464,44000.0,43999.0,1.98315278]
[1633071016555,5.36361464,44000.0,43999.0,0.84196937]
[1633071016955,5.10041725,44000.0,43999.0,0.84196937]
[1633071017154,5.10041725,44000.0,43999.0,0.87796937]
[1633071020756,5.10041725,44000.0,43999.0,0.84196937]
[1633071021156,5.10041725,44000.0,43999.0,0.87796937]
[1633071022757,5.10041725,44000.0,43999.0,0.84196937]
[1633071023160,5.10041725,44000.0,43999.0,0.87796937]
[1633071024162,5.10041725,44000.0,43999.0,1.00315479]
[1633071024360,5.10041725,44000.0,43999.0,0.87796937]
[1633071024361,5.15041725,44000.0,43999.0,0.87796937]
[1633071024761,5.15041725,44000.0,43999.0,0.84196937]
[1633071025165,5.15041725,44000.0,43999.0,0.87996937]
[1633071025863,5.10041725,44000.0,43999.0,0.87996937]
[1633071026462,5.10041725,44000.0,43999.0,0.96714725]
[1633071027263,5.10041725,44000.0,43999.0,1.00614725]
[1633071028666,5.10041725,44000.0,43999.0,0.96714725]
[1633071029065,5.15041725,44000.0,43999.0,0.86714725]
[1633071029265,5.15041725,44000.0,43999.0,0.90614725]
[1633071029867,5.10041725,44000.0,43999.0,0.90614725]
[1633071030467,5.10041725,44000.0,43999.0,1.00614725]
[1633071030667,5.10041725,44000.0,43999.0,0.96714725]
[1633071031065,5.15041725,44000.0,43999.0,0.96714725]
[1633071031267,5.15041725,44000.0,43999.0,1.00614725]
[1633071032073,4.40041725,44000.0,43999.0,1.24396214]
[1633071032276,3.94603225,44000.0,43999.0,2.16274279]
[1633071032470,3.94603225,44000.0,43999.0,2.30172569]
[1633071032670,3.94603225,44000.0,43999.0,2.30119559]
[1633071033067,3.94603225,44000.0,43999.0,2.23017419]
[1633071033273,3.94603225,44000.0,43999.0,2.28600162]
[1633071033668,3.94603225,44000.0,43999.0,1.14481821]
[1633071033874,4.16923225,44000.0,43999.0,0.7977968]
[1633071034070,4.21923225,44000.0,43999.0,0.92301733]
[1633071034282,4.1679641,44000.0,43999.0,0.92301733]
[1633071034472,3.94598318,44000.0,43999.0,0.17256937]
[1633071034673,3.78805423,44000.0,43999.0,0.17256937]
[1633071034872,3.78805423,44000.0,43999.0,0.19075477]
[1633071035075,3.78683515,44000.0,43999.0,0.19075477]
[1633071035269,3.78683515,44000.0,43999.0,0.22775477]
[1633071035670,3.78683515,44000.0,43999.0,0.37775477]
[1633071035868,3.58943006,44000.0,43999.0,0.37775477]
[1633071036469,3.58943006,44000.0,43999.0,0.34075477]
[1633071037272,3.58943006,44000.0,43999.0,0.37775477]
[1633071038470,3.58943006,44000.0,43999.0,0.34075477]
[1633071039273,3.58943006,44000.0,43999.0,0.37975477]
[1633071040678,3.58943006,44000.0,43999.0,0.34075477]
[1633071041276,3.58943006,44000.0,43999.0,0.37875477]
[1633071041878,3.32624108,44000.0,43999.0,0.95545383]
[1633071042477,3.32624108,44000.0,43999.0,0.91745383]
[1633071043283,3.32624108,44000.0,43999.0,0.95545383]
[1633071044682,3.32624108,44000.0,43999.0,0.91745383]
[1633071045281,3.32624108,44000.0,43999.0,0.95545383]
[1633071046683,3.32624108,44000.0,43999.0,0.91745383]
[1633071047283,3.32624108,44000.0,43999.0,0.95545383]
[1633071047482,2.52624108,44000.0,43999.0,0.95545383]
[1633071048682,2.52624108,44000.0,43999.0,0.91745383]
[1633071049285,2.52624108,44000.0,43999.0,0.95545383]
[1633071050486,2.52624108,44000.0,43999.0,0.91745383]
[1633071050686,2.52624108,44000.0,43999.0,1.04282651]
[1633071051284,2.52624108,44000.0,43999.0,1.08082651]
[1633071052687,2.52624108,44000.0,43999.0,1.04282651]
[1633071053291,2.52624108,44000.0,43999.0,1.08082651]
[1633071054691,2.52624108,44000.0,43999.0,0.99282651]
[1633071055290,2.52624108,44000.0,43999.0,1.11793268]
[1633071055692,2.52624108,44000.0,43999.0,1.04747969]
[1633071055991,2.32885562,44000.0,43999.0,1.04747969]
[1633071056595,2.32885562,44000.0,43999.0,1.00947969]
[1633071056791,2.32885562,44000.0,43999.0,1.00820169]
[1633071057059,2.32885562,44000.0,43999.0,1.13351369]
[1633071057391,2.32885562,44000.0,43999.0,1.08340752]
[1633071058195,2.32885562,44000.0,43999.0,0.80809552]
[1633071058591,2.32885562,44000.0,43999.0,0.84396144]
[1633071058995,2.32885562,44000.0,43999.0,0.96931111]
[1633071059192,2.32885562,44000.0,43999.0,0.84396144]
[1633071059392,2.32885562,44000.0,43999.0,0.88096144]
[1633071059593,2.32885562,44000.0,43999.0,0.80809552]
[1633071060391,2.32885562,44000.0,43999.0,0.90809552]
[1633071060593,2.32885562,44000.0,43999.0,0.94857809]
[1633071060992,2.32885562,44000.0,43999.0,0.87109552]
[1633071061393,2.32885562,44000.0,43999.0,0.90809552]
[1633071061594,2.32885562,44000.0,43999.0,1.00809552]
[1633071062192,2.32885562,44000.0,43999.0,1.08720559]
[1633071062591,2.32885562,44000.0,43999.0,0.97109552]
[1633071063393,2.32885562,44000.0,43999.0,1.00809552]
[1633071064593,2.32885562,44000.0,43999.0,0.97109552]
[1633071065393,2.32885562,44000.0,43999.0,1.00809552]
[1633071066195,2.32885562,44000.0,43999.0,1.09507979]
[1633071066594,2.32885562,44000.0,43999.0,2.16013323]
[1633071066994,2.06566156,44000.0,43999.0,2.16013323]
[1633071067194,2.06566156,44000.0,43999.0,2.12313323]
[1633071067392,2.06566156,44000.0,43999.0,2.16013323]
[1633071067793,2.06566156,44000.0,43999.0,2.07314896]
[1633071067995,2.06566156,44000.0,43999.0,2.04402281]
[1633071068200,2.06689834,44000.0,43999.0,2.04402281]
[1633071068396,2.06689834,44000.0,43999.0,1.94402281]
[1633071068594,2.06689834,44000.0,43999.0,2.00678584]
[1633071068796,2.06689834,44000.0,43999.0,1.96978584]
[1633071069395,2.06689834,44000.0,43999.0,2.00578584]
[1633071070598,2.06689834,44000.0,43999.0,1.96978584]
[1633071070797,2.06689834,44000.0,43999.0,1.90702281]
[1633071070995,2.06689834,44000.0,43999.0,1.96975462]
[1633071071196,2.06566156,44000.0,43999.0,1.90702281]
[1633071071396,2.06566156,44000.0,43999.0,1.94202281]
[1633071071596,2.06566156,44000.0,43999.0,2.00702281]
[1633071072199,2.06566156,44000.0,43999.0,1.90702281]
[1633071072598,2.06566156,44000.0,43999.0,2.00702281]
[1633071073400,2.06566156,44000.0,43999.0,2.04302281]
[1633071073802,2.06566156,44000.0,43999.0,2.04424266]
[1633071074603,2.06566156,44000.0,43999.0,2.00824266]
[1633071075402,2.06566156,44000.0,43999.0,2.04524266]
[1633071076004,1.86826183,44000.0,43999.0,2.04524266]
[1633071077210,1.86826183,44000.0,43999.0,2.50824266]
[1633071077406,1.86826183,44000.0,43999.0,2.54724266]
[1633071077608,1.86826183,44000.0,43999.0,2.04724266]
[1633071078210,1.86826183,44000.0,43999.0,2.28724266]
[1633071078608,1.86826183,44000.0,43999.0,2.24824266]
[1633071079408,1.86826183,44000.0,43999.0,2.28724266]
[1633071080611,1.86826183,44000.0,43999.0,2.41265711]
[1633071080812,1.86826183,44000.0,43999.0,2.37365711]
[1633071081211,1.86826183,44000.0,43999.0,2.13365711]
[1633071081411,1.86826183,44000.0,43999.0,2.17265711]
[1633071081812,1.86826183,44000.0,43999.0,2.04724266]
[1633071082416,1.86826183,44000.0,43999.0,2.28724266]
[1633071082612,1.86826183,44000.0,43999.0,2.05288197]
[1633071083415,1.86826183,44000.0,43999.0,2.09188197]
[1633071083616,1.63083975,44000.0,43999.0,2.09188197]
[1633071084419,1.63083975,44000.0,43999.0,2.33188197]
[1633071084819,1.63083975,44000.0,43999.0,2.29288197]
[1633071085418,1.63083975,44000.0,43999.0,2.33188197]
[1633071085619,1.62583975,44000.0,43999.0,2.33188197]
[1633071086020,1.62583975,44000.0,43999.0,2.4573222]
[1633071086218,1.62583975,44000.0,43999.0,2.45732281]
[1633071086420,1.62583975,44000.0,43999.0,2.4126835]
[1633071086619,1.62583975,44000.0,43999.0,2.3736835]
[1633071087419,1.62583975,44000.0,43999.0,2.4126835]
[1633071087822,1.62583975,44000.0,43999.0,2.28724266]
[1633071088024,1.62583975,44000.0,43999.0,2.33900803]
[1633071088025,1.17144075,44000.0,43999.0,2.33900803]
[1633071088223,0.0005,44001.0,44000.0,1.62022223]
[1633071088426,0.0002482,44001.0,44000.0,3.67498712]
[1633071088623,0.0004,44004.0,44001.0,0.75]
[1633071088824,0.0004,44004.0,44003.0,1.08038352]
[1633071089022,0.00014577,44005.0,44003.0,2.61785731]
[1633071089221,0.00014577,44005.0,44004.0,3.14377113]
[1633071089422,0.00014577,44005.0,44004.0,2.48175647]
[1633071089621,0.00014577,44005.0,44004.0,3.62293988]
[1633071089822,0.00014577,44005.0,44004.0,3.62290319]
[1633071090082,0.00014577,44005.0,44004.0,3.49828464]
[1633071090227,0.00014577,44005.0,44004.0,4.01411976]
[1633071090624,0.00014577,44005.0,44004.0,3.77113884]
[1633071090823,0.00014577,44005.0,44004.0,3.72060874]
[1633071091424,0.00014577,44005.0,44004.0,3.68651462]
[1633071091622,0.00014577,44005.0,44004.0,2.67042451]
[1633071091823,0.00014577,44005.0,44004.0,2.67048451]
[1633071092025,0.02657575,44009.0,44005.0,1.2]
[1633071092225,0.02657575,44009.0,44008.0,0.07771244]
[1633071092424,0.02657575,44009.0,44008.0,1.36570217]
[1633071093082,0.02657575,44009.0,44008.0,1.20303767]
[1633071093422,0.02657575,44009.0,44008.0,1.69739367]
[1633071093623,0.02657575,44009.0,44008.0,1.74739367]
[1633071093823,0.02657575,44009.0,44008.0,1.74745367]
[1633071094225,1.02888023,44016.0,44009.0,0.4]
[1633071094423,1.02388023,44016.0,44012.0,0.01767007]
[1633071094625,0.63669695,44018.0,44013.0,1.08785344]
[1633071094823,0.63669695,44018.0,44015.0,0.01695809]
[1633071095023,0.63669695,44018.0,44016.0,1.08785344]
[1633071095222,0.5,44018.0,44017.0,1.07912528]
[1633071095425,0.5,44018.0,44017.0,1.10192528]
[1633071096627,0.5,44018.0,44017.0,1.67255234]
[1633071096824,0.5,44018.0,44017.0,1.77255234]
[1633071097026,0.5,44018.0,44017.0,1.77308244]
[1633071097225,0.5,44018.0,44017.0,2.46688734]
[1633071097422,0.5,44018.0,44017.0,2.50688734]
[1633071098027,0.5,44018.0,44017.0,2.50694734]
[1633071098823,0.5,44018.0,44017.0,2.46694734]
[1633071099024,0.5,44018.0,44017.0,2.62876734]
[1633071099423,0.5,44018.0,44017.0,2.66876734]
[1633071100026,0.5,44018.0,44017.0,2.71876734]
[1633071100228,0.5,44018.0,44017.0,2.66876734]
[1633071100826,0.5,44018.0,44017.0,2.62876734]
[1633071101229,0.54097578,44018.0,44017.0,2.3746955]
[1633071101425,0.5,44018.0,44017.0,2.2528755]
[1633071102427,0.5,44018.0,44017.0,2.4928755]
[1633071102827,0.5,44018.0,44017.0,2.4528755]
[1633071103426,0.50008721,44018.0,44017.0,2.4918755]
[1633071104229,0.50008721,44018.0,44017.0,2.15064844]
[1633071104833,0.50008721,44018.0,44017.0,1.08791344]
[1633071104834,0.88254076,44018.0,44017.0,1.08791344]
[1633071105087,0.65934076,44018.0,44017.0,1.08791344]
[1633071105429,0.6580496,44018.0,44017.0,1.12091344]
[1633071106630,0.50008721,44018.0,44017.0,1.12219357]
[1633071106831,9.11e-05,44021.0,44019.0,0.00126993]
[1633071107033,9.11e-05,44021.0,44020.0,1.66431648]
[1633071107229,9.11e-05,44021.0,44020.0,1.71431648]
[1633071107430,9.11e-05,44021.0,44020.0,2.15497048]
[1633071107630,9.11e-05,44021.0,44020.0,2.10373267]
[1633071107832,0.2232911,44021.0,44020.0,2.00373267]
[1633071108033,0.2232911,44021.0,44020.0,1.09367867]
[1633071108230,9.11e-05,44021.0,44020.0,1.09367867]
[1633071108431,0.17744829,44021.0,44020.0,1.09367867]
[1633071108831,0.61457119,44021.0,44020.0,1.08785344]
[1633071109031,0.34778874,44021.0,44020.0,1.08785344]
[1633071109230,0.0013176,44021.0,44020.0,1.08785344]
[1633071109431,9.11e-05,44021.0,44020.0,1.12285344]
[1633071109633,9.11e-05,44021.0,44020.0,1.46361744]
[1633071110032,9.11e-05,44021.0,44020.0,1.46367744]
[1633071110433,0.14679823,44021.0,44020.0,1.46367744]
[1633071110832,0.14679823,44021.0,44020.0,1.42867744]
[1633071111431,0.14679823,44021.0,44020.0,1.46467744]
[1633071111632,0.14679823,44021.0,44020.0,1.12391344]
[1633071112431,9.11e-05,44021.0,44020.0,1.12391344]
[1633071112633,9.11e-05,44021.0,44020.0,1.22391344]
[1633071112833,9.11e-05,44021.0,44020.0,1.18791344]
[1633071113034,9.11e-05,44021.0,44020.0,1.08791344]
[1633071113434,9.11e-05,44021.0,44020.0,1.12291344]
[1633071113636,0.17381461,44021.0,44020.0,1.12291344]
[1633071113832,0.00017206,44021.0,44020.0,1.22291344]
[1633071114087,0.00017206,44021.0,44020.0,1.12291344]
[1633071114832,0.18704524,44021.0,44020.0,1.08791344]
[1633071115433,0.18704524,44021.0,44020.0,1.12291344]
[1633071115634,0.18704524,44021.0,44020.0,1.46367944]
[1633071115836,0.18830059,44021.0,44020.0,1.12291344]
[1633071116239,0.00142741,44021.0,44020.0,1.12291344]
[1633071116835,0.00142741,44021.0,44020.0,1.08791344]
[1633071117035,0.00017206,44021.0,44020.0,1.42866544]
[1633071117438,0.00017206,44021.0,44020.0,1.46366544]
[1633071117635,0.00017206,44021.0,44020.0,1.12291344]
[1633071118536,0.0014382,44021.0,44020.0,1.12291344]
[1633071118740,0.0014382,44021.0,44020.0,1.08791344]
[1633071119338,0.00017206,44021.0,44020.0,1.42867344]
[1633071119538,0.00017206,44021.0,44020.0,1.46367344]
[1633071120545,0.00017206,44021.0,44020.0,1.54866689]
[1633071120743,0.00017206,44021.0,44020.0,1.51366689]
[1633071121540,0.00017206,44021.0,44020.0,1.54866689]
[1633071121741,0.00017206,44021.0,44020.0,1.46367344]
[1633071121941,0.00017206,44021.0,44020.0,1.56367344]
[1633071122542,0.00017206,44021.0,44020.0,1.46367344]
[1633071122942,0.00017206,44021.0,44020.0,1.42867344]
[1633071123599,0.00017206,44021.0,44020.0,1.46467344]
[1633071125002,0.00017206,44021.0,44020.0,1.42867344]
[1633071125204,0.22337206,44021.0,44020.0,1.08791344]
[1633071125405,0.52298284,44021.0,44020.0,1.08791344]
[1633071125603,0.29978284,44021.0,44020.0,1.10011344]
[1633071125803,0.24978284,44021.0,44020.0,1.10011344]
[1633071126005,0.00144601,44021.0,44020.0,1.10011344]
[1633071126806,0.00144601,44021.0,44020.0,1.06511344]
[1633071127607,0.00144601,44021.0,44020.0,1.10011344]
[1633071127806,0.00017206,44021.0,44020.0,1.10011344]
[1633071129008,0.00017206,44021.0,44020.0,1.06511344]
[1633071129606,0.00017206,44021.0,44020.0,1.10011344]
[1633071130909,0.10102538,44021.0,44020.0,1.06511344]
[1633071131309,0.00017206,44021.0,44020.0,1.06511344]
[1633071131510,0.00017206,44021.0,44020.0,1.09911344]
[1633071132314,0.10744745,44021.0,44020.0,1.09911344]
[1633071132511,0.10744745,44021.0,44020.0,1.03332815]
[1633071132913,0.10744745,44021.0,44020.0,0.99932815]
[1633071133513,0.10744745,44021.0,44020.0,1.02832815]
[1633071133712,0.10244745,44021.0,44020.0,1.02832815]
[1633071134914,0.10244745,44021.0,44020.0,0.99932815]
[1633071135116,0.10251941,44021.0,44020.0,0.99932815]
[1633071135517,0.00133242,44021.0,44020.0,1.02932815]
[1633071136919,0.00133242,44021.0,44020.0,0.99932815]
[1633071137716,0.00133242,44021.0,44020.0,1.03232815]
[1633071137920,7.196e-05,44021.0,44020.0,1.03232815]
[1633071138419,0.00134052,44021.0,44020.0,1.03232815]
[1633071139019,0.00134052,44021.0,44020.0,0.99932815]
[1633071139622,7.196e-05,44021.0,44020.0,1.03332815]
[1633071140818,7.196e-05,44021.0,44020.0,0.99932815]
[1633071141616,7.196e-05,44021.0,44020.0,1.03332815]
[1633071143018,7.196e-05,44021.0,44020.0,0.99932815]
[1633071143622,7.196e-05,44021.0,44020.0,1.03332815]
[1633071144423,0.10169558,44021.0,44020.0,1.03332815]
[1633071145025,0.10169558,44021.0,44020.0,0.99932815]
[1633071145623,0.10169558,44021.0,44020.0,1.03332815]
[1633071145824,7.196e-05,44021.0,44020.0,1.03332815]
[1633071149226,7.196e-05,44021.0,44020.0,0.99932815]
[1633071149627,7.196e-05,44021.0,44020.0,1.03432815]
[1633071151030,7.196e-05,44021.0,44020.0,0.99932815]
[1633071151629,7.196e-05,44021.0,44020.0,1.03432815]
[1633071153033,7.196e-05,44021.0,44020.0,0.99932815]
[1633071153631,7.196e-05,44021.0,44020.0,1.03332815]
[1633071154433,7.196e-05,44021.0,44020.0,4.04133572]
[1633071155034,7.196e-05,44021.0,44020.0,4.09133572]
[1633071155238,7.196e-05,44021.0,44020.0,4.05733572]
[1633071155634,7.196e-05,44021.0,44020.0,4.09133572]
[1633071155839,7.196e-05,44021.0,44020.0,1.32975462]
[1633071155840,1.37327196,44021.0,44020.0,1.32975462]
[1633071156039,1.37327196,44021.0,44010.0,0.06287241]
[1633071156040,0.69108484,44020.0,44010.0,0.06287241]
[1633071156237,0.69108484,44020.0,44009.0,0.06287547]
[1633071156238,0.10185454,44012.0,44009.0,0.06287547]
[1633071156436,0.34687671,44011.0,44008.0,0.22952897]
[1633071156836,0.13756238,44009.0,44008.0,0.22952897]
[1633071157036,0.41232292,44009.0,44008.0,0.32475567]
[1633071157235,0.41232292,44009.0,44008.0,0.1666]
[1633071157236,0.46052529,44009.0,44008.0,0.1666]
[1633071157634,0.46052529,44009.0,44008.0,0.2016]
[1633071159238,0.41223156,44009.0,44008.0,1.1666]
[1633071159637,0.27476054,44009.0,44008.0,1.2016]
[1633071160640,0.43453242,44009.0,44008.0,1.2016]
[1633071161038,0.43453242,44009.0,44008.0,1.1666]
[1633071161641,0.27476054,44009.0,44008.0,1.21694814]
[1633071162702,0.52733256,44012.0,44008.0,1.21694814]
[1633071163303,0.52733256,44012.0,44008.0,1.18194814]
[1633071163703,0.52733256,44012.0,44008.0,1.21594814]
[1633071165103,0.47733256,44012.0,44008.0,1.18194814]
[1633071165303,0.47123965,44012.0,44008.0,1.18194814]
[1633071165503,0.47230612,44012.0,44008.0,1.18194814]
[1633071165904,0.227251,44012.0,44008.0,1.21594814]
[1633071166103,0.47142369,44012.0,44008.0,1.21594814]
[1633071166503,0.52142369,44012.0,44008.0,1.21594814]
[1633071166704,0.277251,44012.0,44009.0,0.0228]
[1633071166904,0.227251,44012.0,44010.0,0.01882383]
[1633071167103,0.26388675,44019.0,44011.0,0.0228]
[1633071167302,0.39108484,44020.0,44011.0,0.0228]
[1633071167503,0.44108484,44020.0,44011.0,0.0228]
[1633071167703,0.24000139,44016.0,44011.0,0.0228]
[1633071168115,0.25238765,44015.0,44011.0,0.0578]
[1633071168308,0.04369224,44014.0,44011.0,0.0578]
[1633071168504,0.18437724,44013.0,44011.0,0.0578]
[1633071168706,0.04386171,44012.0,44011.0,0.0578]
[1633071168907,0.18437724,44013.0,44011.0,0.0578]
[1633071169505,0.18437724,44013.0,44011.0,0.398619]
[1633071169905,0.18437724,44013.0,44011.0,0.433619]
[1633071170310,0.18437724,44013.0,44011.0,0.0578]
[1633071170507,0.18437724,44013.0,44011.0,0.0228]
[1633071171308,0.227242,44014.0,44011.0,0.0228]
[1633071171710,0.227242,44014.0,44013.0,0.02104335]
[1633071172112,0.20451781,44014.0,44013.0,0.02104335]
[1633071174112,0.20451781,44014.0,44013.0,0.05704335]
[1633071174315,0.227196,44019.0,44014.0,0.19960265]
[1633071174517,7.196e-05,44021.0,44019.0,0.00124333]
[1633071174715,7.196e-05,44021.0,44019.0,0.17498942]
[1633071175315,0.10343315,44021.0,44019.0,0.73813567]
[1633071175515,0.10343315,44021.0,44019.0,0.73689234]
[1633071175712,7.196e-05,44021.0,44019.0,0.73689234]
[1633071175911,7.196e-05,44021.0,44019.0,0.77189234]
[1633071177414,7.196e-05,44021.0,44019.0,0.73689234]
[1633071177615,0.33108484,44020.0,44019.0,0.73689234]
[1633071177816,0.33108484,44020.0,44019.0,0.43017734]
[1633071178018,0.33108484,44020.0,44019.0,0.29701734]
[1633071178221,0.33108484,44020.0,44019.0,1.44701734]
[1633071178422,0.12698484,44020.0,44019.0,1.88896259]
[1633071178731,0.0159155,44020.0,44019.0,0.73949269]
[1633071178918,0.1159155,44020.0,44019.0,1.01513578]
[1633071179115,0.1159155,44020.0,44019.0,0.98113578]
[1633071179716,0.1159155,44020.0,44019.0,0.70549269]
[1633071179917,0.1159155,44020.0,44019.0,0.74449269]
[1633071180117,0.1160355,44020.0,44019.0,0.74449269]
[1633071180318,0.1160355,44020.0,44019.0,0.79449269]
[1633071180517,0.1160355,44020.0,44019.0,1.05418044]
[1633071181118,0.1160355,44020.0,44019.0,1.17714916]
[1633071181521,0.1160355,44020.0,44019.0,0.61048549]